bitfinex-derivatives/quotes_BTCF0:USTF0_20251207
["timestamp","ask_amount","ask_price","bid_price","bid_amount"]
[1765114445855,0.17900063,89086.0,89085.0,0.20019402]
[1765114446051,0.18100063,89086.0,89085.0,0.20519402]
[1765114446555,0.00728063,89086.0,89085.0,0.20519402]
[1765114446752,0.00016839,89094.0,89093.0,0.17818]
[1765114447059,0.00016839,89094.0,89093.0,0.53898]
[1765114447756,0.17388839,89094.0,89093.0,0.53898]
[1765114448056,0.17388839,89094.0,89070.0,0.0112261]
[1765114448057,0.17372,89081.0,89080.0,0.53898]
[1765114448644,0.17372,89081.0,89080.0,0.45001]
[1765114448850,0.17372,89078.0,89076.0,0.52492]
[1765114449054,0.17372,89078.0,89077.0,0.17834839]
[1765114451458,0.17472,89078.0,89077.0,0.18334839]
[1765114451656,0.001,89078.0,89077.0,0.18334839]
[1765114452057,0.001,89078.0,89077.0,0.18434839]
[1765114452961,0.53089,89091.0,89090.0,0.08206]
[1765114453154,0.17009,89078.0,89077.0,0.00616839]
[1765114453358,0.17009,89078.0,89077.0,0.17677839]
[1765114453965,0.17009,89078.0,89077.0,0.17577839]
[1765114454162,0.17009,89078.0,89077.0,0.17077839]
[1765114454958,0.17109,89078.0,89077.0,0.17777839]
[1765114455862,0.001,89078.0,89077.0,0.17777839]
[1765114460565,0.08364,89078.0,89077.0,0.17777839]
[1765114460764,0.17109,89078.0,89077.0,0.08922839]
[1765114460958,0.17109,89078.0,89077.0,0.17777839]
[1765114461276,0.17109,89078.0,89077.0,0.61394839]
[1765114461461,0.17109,89078.0,89077.0,0.17777839]
[1765114461670,0.17109,89078.0,89077.0,0.53188839]
[1765114462170,0.17109,89078.0,89077.0,0.61394839]
[1765114463565,0.17109,89078.0,89077.0,0.70249839]
[1765114467175,0.001,89078.0,89077.0,0.70249839]
[1765114468662,0.17109,89078.0,89077.0,0.70249839]
[1765114470464,0.001,89078.0,89077.0,0.70249839]
[1765114470666,0.001,89078.0,89077.0,1.13249839]
[1765114470872,0.08280839,89094.0,89093.0,0.1818333]
[1765114471072,0.10893602,89094.0,89093.0,0.7064733]
[1765114471273,0.19638602,89094.0,89093.0,0.7064733]
[1765114472184,0.19638602,89094.0,89093.0,0.6067]
[1765114472377,0.19638602,89094.0,89077.0,0.00616839]
[1765114472378,0.17009,89078.0,89077.0,0.00616839]
[1765114472569,0.17009,89078.0,89077.0,0.70141839]
[1765114472970,0.17009,89078.0,89077.0,0.69541839]
[1765114473566,0.17109,89078.0,89077.0,0.70141839]
[1765114475375,0.17109,89078.0,89077.0,0.70137839]
[1765114480583,0.17109,89078.0,89077.0,0.70133839]
[1765114484989,0.17109,89078.0,89077.0,0.17677839]
[1765114491889,0.17109,89078.0,89077.0,0.00616839]
[1765114492090,0.19726337,89078.0,89077.0,0.00616839]
[1765114492687,0.16127,89062.0,89061.0,0.07311]
[1765114492883,0.16127,89062.0,89061.0,0.16026]
[1765114494094,0.16127,89062.0,89061.0,0.07611]
[1765114494988,0.16127,89062.0,89061.0,0.07511]
[1765114495390,0.16327,89062.0,89061.0,0.08511]
[1765114495590,0.16327,89062.0,89061.0,0.012]
[1765114495886,0.16227,89062.0,89061.0,0.008]
[1765114497096,0.16327,89062.0,89061.0,0.003]
[1765114497293,0.16327,89062.0,89061.0,0.001]
[1765114498202,0.16327,89062.0,89061.0,0.14554]
[1765114498396,0.16327,89062.0,89061.0,0.07238]
[1765114498701,0.18639,89058.0,89057.0,8.024e-05]
[1765114498899,0.14313,89047.0,89046.0,0.00028076]
[1765114499899,0.14324175,89047.0,89046.0,0.00028076]
[1765114500804,0.14424175,89047.0,89046.0,0.00028076]
[1765114501394,0.14424175,89047.0,89046.0,0.07166076]
[1765114501692,0.14924175,89047.0,89046.0,0.00128076]
[1765114502094,0.14313,89039.0,89038.0,0.00016839]
[1765114502397,0.04326,89040.0,89026.0,0.15549853]
[1765114502398,0.14313,89027.0,89026.0,0.15549853]
[1765114502803,0.14313,89027.0,89026.0,0.14454]
[1765114504298,0.14313,89027.0,89026.0,0.14654]
[1765114504904,0.14413,89027.0,89026.0,0.15154]
[1765114507502,0.001,89027.0,89026.0,0.15154]
[1765114508309,0.00016849,89035.0,89034.0,0.1789307]
[1765114508505,0.00016849,89035.0,89034.0,0.5397307]
[1765114509412,0.3608,89063.0,89046.0,0.2016092]
[1765114509803,0.3608,89063.0,89046.0,0.7261292]
[1765114510413,0.07302175,89047.0,89046.0,0.7261292]
[1765114511011,0.07302175,89047.0,89046.0,0.7271292]
[1765114511898,0.07802175,89047.0,89046.0,0.7281292]
[1765114512499,0.14824175,89047.0,89046.0,0.6822892]
[1765114513113,0.14424175,89047.0,89046.0,0.6842892]
[1765114513315,0.18711175,89047.0,89046.0,0.6842892]
[1765114513510,0.14424175,89047.0,89046.0,0.6842892]
[1765114513707,0.07402175,89047.0,89046.0,0.7220392]
[1765114514817,0.00111175,89047.0,89046.0,0.7220392]
[1765114516508,0.13901175,89047.0,89046.0,0.7220392]
[1765114517807,0.13901175,89047.0,89046.0,0.6842892]
[1765114525116,0.13901175,89047.0,89046.0,0.67294]
[1765114525624,0.13901175,89047.0,89046.0,0.14854]
[1765114525809,0.13901175,89047.0,89046.0,0.67294]
[1765114529617,0.13901175,89047.0,89046.0,0.14854]
[1765114529814,0.49981175,89047.0,89046.0,0.07538]
[1765114530016,0.49981175,89047.0,89046.0,0.004]
[1765114530427,0.1379,89039.0,89038.0,0.00016849]
[1765114530628,0.4987,89039.0,89038.0,0.00016849]
[1765114531025,0.52499316,89039.0,89038.0,0.00016849]
[1765114531425,0.4987,89039.0,89038.0,0.00016849]
[1765114531629,0.4987,89039.0,89038.0,0.00216849]
[1765114531830,0.4997,89039.0,89038.0,0.00916849]
[1765114532527,0.04287,89033.0,89021.0,0.42914]
[1765114532824,0.1379,89022.0,89021.0,0.50566]
[1765114533025,0.13798343,89022.0,89021.0,0.50566]
[1765114533634,0.13798343,89022.0,89021.0,0.3608]
[1765114534226,0.1379,89014.0,89013.0,0.15626179]
[1765114535730,0.1399,89014.0,89013.0,0.16626179]
[1765114540035,0.002,89014.0,89013.0,0.16626179]
[1765114540433,0.002,89014.0,89013.0,0.58626179]
[1765114541734,0.002,89014.0,89013.0,0.16626179]
[1765114543636,0.13743,89014.0,89013.0,0.16626179]
[1765114544037,0.13743,89014.0,89013.0,0.69062179]
[1765114545745,0.06767,89014.0,89013.0,0.69062179]
[1765114546044,0.002,89014.0,89013.0,0.69062179]
[1765114548650,0.13743,89014.0,89013.0,0.69062179]
[1765114551449,0.13743,89014.0,89013.0,1.05142179]
[1765114552455,0.13743,89014.0,89013.0,0.51582849]
[1765114552657,0.13743,89014.0,89013.0,1.04014849]
[1765114553959,0.13743,89014.0,89013.0,0.96362849]
[1765114554350,0.13743,89014.0,89013.0,1.04789189]
[1765114555159,0.06767,89014.0,89013.0,1.04789189]
[1765114555660,0.13743,89014.0,89013.0,1.04789189]
[1765114557756,0.06767,89014.0,89013.0,1.04789189]
[1765114558153,0.13743,89014.0,89013.0,1.04789189]
[1765114560259,8.343e-05,89022.0,89013.0,1.46789189]
[1765114560458,8.343e-05,89022.0,89021.0,0.1509524]
[1765114560657,8.343e-05,89022.0,89021.0,0.6752324]
[1765114560854,0.17639343,89022.0,89013.0,0.37096849]
[1765114561060,0.13543,89014.0,89013.0,0.51068849]
[1765114561359,0.13543,89014.0,89013.0,0.50468849]
[1765114561663,0.13543,89014.0,89013.0,0.43465849]
[1765114561861,0.13543,89014.0,89013.0,0.36796849]
[1765114562062,0.13543,89014.0,89013.0,0.00716849]
[1765114563560,0.13543,89014.0,89013.0,0.00316849]
[1765114563962,0.13543,89014.0,89013.0,0.00016849]
[1765114564168,0.14343,89014.0,89013.0,0.00216849]
[1765114564665,0.14943,89014.0,89013.0,0.00316849]
[1765114565759,0.17574166,89014.0,89013.0,0.00316849]
[1765114566364,0.12256,89007.0,89006.0,0.00028088]
[1765114566560,0.48336,89007.0,89006.0,0.00028088]
[1765114568159,0.48336,89007.0,89006.0,0.00228088]
[1765114568160,0.49336,89007.0,89006.0,0.00228088]
[1765114569659,0.49336,89007.0,89006.0,0.12182088]
[1765114570567,0.13256,89007.0,89006.0,0.06175088]
[1765114570958,0.13256,89007.0,89006.0,0.12182088]
[1765114574467,0.13256,89007.0,89006.0,0.00228088]
[1765114575463,0.13256,89007.0,89006.0,0.12113088]
[1765114576959,0.01,89007.0,89006.0,0.12113088]
[1765114578171,0.12082343,89022.0,89021.0,0.11885]
[1765114578565,0.12082343,89022.0,89021.0,0.1300824]
[1765114578566,8.343e-05,89022.0,89021.0,0.1300824]
[1765114579269,0.03769,89034.0,89029.0,0.1300813]
[1765114579270,0.12090849,89030.0,89029.0,0.1300813]
[1765114579866,0.00016849,89030.0,89029.0,0.1300813]
[1765114580475,0.00216849,89030.0,89029.0,0.1300813]
[1765114580872,0.01316849,89030.0,89029.0,0.1320813]
[1765114581068,0.01316849,89030.0,89029.0,0.4928813]
[1765114581267,0.13390849,89030.0,89029.0,0.42371]
[1765114581477,0.12074,89022.0,89021.0,0.47981849]
[1765114582570,0.12074,89022.0,89021.0,0.06107849]
[1765114582768,0.12074,89022.0,89021.0,0.00016849]
[1765114583877,0.12574,89022.0,89021.0,0.00116849]
[1765114585078,0.12674,89022.0,89021.0,0.00116849]
[1765114585462,0.12774,89022.0,89021.0,0.12001849]
[1765114585975,0.007,89022.0,89021.0,0.12001849]
[1765114586175,0.008,89022.0,89021.0,0.12001849]
[1765114586568,0.12874,89022.0,89021.0,0.12001849]
[1765114587076,0.008,89022.0,89021.0,0.12001849]
[1765114588376,0.008,89022.0,89021.0,0.64413849]
[1765114589469,0.06821,89022.0,89021.0,0.64413849]
[1765114590579,0.12874,89022.0,89021.0,0.64413849]
[1765114592181,0.12874,89022.0,89021.0,0.12001849]
[1765114592371,0.12874,89022.0,89021.0,0.64413849]
[1765114593079,0.12874,89022.0,89021.0,1.00493849]
[1765114593677,0.008,89022.0,89021.0,1.00493849]
[1765114593877,0.008,89022.0,89021.0,0.48081849]
[1765114594078,0.008,89022.0,89021.0,1.00489849]
[1765114595383,0.12874,89022.0,89021.0,1.00489849]
[1765114595782,0.008,89022.0,89021.0,1.00489849]
[1765114596092,0.12874,89022.0,89021.0,1.00489849]
[1765114596583,0.06821,89022.0,89021.0,1.00489849]
[1765114596785,0.008,89022.0,89021.0,1.00489849]
[1765114596985,0.008,89022.0,89021.0,0.48081849]
[1765114597176,0.008,89022.0,89021.0,1.00485849]
[1765114603981,0.11945,89022.0,89021.0,1.00485849]
[1765114605181,0.11945,89022.0,89021.0,0.48081849]
[1765114605388,0.11945,89022.0,89021.0,0.36196849]
[1765114605583,0.11945,89022.0,89021.0,0.41718849]
[1765114605886,0.11945,89022.0,89021.0,0.47591849]
[1765114609284,0.11945,89022.0,89021.0,0.00116849]
[1765114610096,0.11945,89022.0,89021.0,0.11511849]
[1765114610800,0.11945,89022.0,89021.0,0.05638849]
[1765114614407,0.11945,89022.0,89021.0,0.00116849]
[1765114615396,0.11945,89022.0,89021.0,0.05638849]
[1765114615700,0.11945,89022.0,89021.0,0.10892849]
[1765114616495,0.15076,89022.0,89021.0,0.10892849]
[1765114617809,0.008,89022.0,89021.0,0.48096089]
[1765114618511,0.00016849,89030.0,89029.0,0.1168213]
[1765114618693,0.3608,89046.0,89045.0,0.10559]
[1765114618694,0.41266,89046.0,89045.0,0.10559]
[1765114618893,0.41266,89046.0,89037.0,0.1168203]
[1765114618894,0.10332,89038.0,89037.0,0.1168203]
[1765114619498,0.10332,89038.0,89037.0,0.10559]
[1765114619701,0.10332,89038.0,89037.0,0.05305]
[1765114620103,0.10332,89038.0,89033.0,0.0112308]
[1765114620104,0.10332,89034.0,89033.0,0.1168208]
[1765114620500,0.10332,89034.0,89033.0,0.10559]
[1765114620703,0.10332,89031.0,89030.0,0.57697]
[1765114621001,0.10332,89031.0,89030.0,0.62951]
[1765114621202,0.10932,89038.0,89037.0,0.10559]
[1765114621403,0.10832,89038.0,89037.0,0.10559]
[1765114622001,0.10332,89038.0,89037.0,0.10559]
[1765114622204,0.10332,89034.0,89033.0,0.001]
[1765114622609,0.10332,89027.0,89026.0,0.57693]
[1765114622807,0.10332,89027.0,89026.0,0.10559]
[1765114622996,0.10332,89022.0,89021.0,0.41401849]
[1765114623203,0.10332,89022.0,89021.0,0.46655849]
[1765114623407,0.10332,89022.0,89021.0,0.10575849]
[1765114623704,0.10332,89022.0,89021.0,0.00016849]
[1765114624005,0.10332,89022.0,89021.0,0.10575849]
[1765114624210,0.10432,89022.0,89021.0,0.10575849]
[1765114624706,0.10432,89022.0,89021.0,0.05321849]
[1765114624912,0.10432,89022.0,89021.0,0.00016849]
[1765114625910,0.10432,89022.0,89021.0,0.00216849]
[1765114625911,0.10532,89022.0,89021.0,0.00216849]
[1765114626410,0.10532,89022.0,89021.0,0.10775849]
[1765114627310,0.002,89022.0,89021.0,0.10775849]
[1765114627498,0.05386,89022.0,89021.0,0.10775849]
[1765114627694,0.10532,89022.0,89021.0,0.10775849]
[1765114630314,0.10532,89022.0,89021.0,0.05521849]
[1765114631714,0.10532,89022.0,89021.0,0.10775849]
[1765114631915,0.10532,89022.0,89021.0,0.00216849]
[1765114632613,0.10532,89022.0,89021.0,0.05090849]
[1765114633206,0.10532,89022.0,89021.0,0.10048849]
[1765114635211,0.10532,89022.0,89021.0,0.00216849]
[1765114635509,0.12575,89012.0,89011.0,0.04874]
[1765114635907,0.12575,89012.0,89011.0,0.09832]
[1765114636309,0.0969,89012.0,89011.0,0.09832]
[1765114636616,0.0969,89012.0,89011.0,0.09932]
[1765114638011,0.0969,89012.0,89011.0,0.10432]
[1765114638214,0.0979,89012.0,89011.0,0.10432]
[1765114639807,0.001,89012.0,89011.0,0.10432]
[1765114641423,0.00016849,89020.0,89019.0,0.09832]
[1765114641610,0.04830849,89020.0,89019.0,0.4703526]
[1765114641809,0.09706849,89020.0,89019.0,0.4703526]
[1765114642719,0.09806849,89020.0,89019.0,0.4713526]
[1765114643922,0.09806849,89020.0,89019.0,0.46012]
[1765114644120,0.09806849,89020.0,89019.0,0.09932]
[1765114651620,0.45886849,89020.0,89019.0,0.001]
[1765114653822,0.48506369,89020.0,89019.0,0.001]
[1765114654124,0.0969,89007.0,89006.0,0.00028088]
[1765114654621,0.48389085,89007.0,89006.0,0.00028088]
[1765114655019,0.0969,89004.0,89003.0,0.00030588]
[1765114655324,0.12308932,89004.0,89003.0,0.00030588]
[1765114657022,0.0969,89004.0,89003.0,0.00030588]
[1765114657218,0.0979,89004.0,89003.0,0.00030588]
[1765114657417,0.0989,89004.0,89003.0,0.00130588]
[1765114658430,0.12775,89004.0,89003.0,0.00130588]
[1765114663627,0.48855,89004.0,89003.0,0.00130588]
[1765114664739,0.09022,88989.0,88988.0,0.1038264]
[1765114665229,0.11828,88998.0,88997.0,0.09259]
[1765114665726,0.11841315,88998.0,88997.0,0.09259]
[1765114665928,0.09035315,88998.0,88997.0,0.09259]
[1765114666124,0.11841315,88998.0,88997.0,0.09259]
[1765114666836,0.00013315,88998.0,88997.0,0.09259]
[1765114667036,0.00113315,88998.0,88997.0,0.09459]
[1765114667330,0.00016849,89006.0,89005.0,0.09259]
[1765114668034,0.38886,89022.0,89021.0,0.09259]
[1765114668231,0.47908,89022.0,89021.0,0.09259]
[1765114668431,0.45102,89022.0,89021.0,0.09259]
[1765114668634,0.02806,89034.0,89027.0,0.09259]
[1765114668635,0.11828,89028.0,89027.0,0.09259]
[1765114668828,0.09022,89028.0,89027.0,0.09259]
[1765114669432,0.04204,89028.0,89027.0,0.1038216]
[1765114669637,0.00016849,89036.0,89035.0,0.09259]
[1765114670624,0.00016849,89036.0,89035.0,0.10387422]
[1765114671224,0.01116849,89036.0,89035.0,0.10487422]
[1765114672433,0.01116849,89036.0,89035.0,0.09359]
[1765114672635,0.10138849,89036.0,89035.0,0.09359]
[1765114673633,0.05320849,89036.0,89035.0,0.09359]
[1765114675927,0.10138849,89036.0,89035.0,0.09359]
[1765114677331,0.01116849,89036.0,89035.0,0.09359]
[1765114678042,0.05320849,89036.0,89035.0,0.09359]
[1765114678237,0.10138849,89036.0,89035.0,0.09359]
[1765114680938,0.10138849,89036.0,89035.0,0.45439]
[1765114684258,0.10138849,89036.0,89035.0,0.09359]
[1765114684543,0.10138849,89036.0,89035.0,0.45439]
[1765114690656,0.10138849,89036.0,89035.0,0.97783]
[1765114691248,0.10138849,89036.0,89035.0,0.8852]
[1765114691453,0.10138849,89036.0,89035.0,0.001]
[1765114691952,0.10138849,89036.0,89035.0,0.0982206]
[1765114692158,0.10138849,89036.0,89035.0,0.08699]
[1765114692357,0.10138849,89036.0,89035.0,0.001]
[1765114692853,0.10138849,89036.0,89035.0,0.08363]
[1765114693458,0.10138849,89036.0,89035.0,0.001]
[1765114697060,0.10138849,89036.0,89035.0,0.08363]
[1765114697261,0.03723677,89036.0,89035.0,0.08363]
[1765114697458,0.11682677,89036.0,89035.0,0.04075]
[1765114697659,0.11682677,89036.0,89035.0,0.08363]
[1765114698157,0.09075849,89036.0,89035.0,0.08363]
[1765114698361,0.11684115,89036.0,89035.0,0.08363]
[1765114701152,0.11684115,89036.0,89035.0,0.001]
[1765114702257,0.11684115,89036.0,89035.0,0.08363]
[1765114702659,0.11684115,89036.0,89035.0,0.001]
[1765114703063,0.07959,89021.0,89020.0,0.0112324]
[1765114703864,0.07959,89021.0,89020.0,0.0938624]
[1765114704264,0.08059,89021.0,89020.0,0.10529114]
[1765114704458,0.08359,89021.0,89020.0,0.10629114]
[1765114705060,0.08359,89021.0,89020.0,0.10595756]
[1765114705259,0.08359,89021.0,89020.0,0.0122324]
[1765114705468,0.08359,89021.0,89020.0,0.0948624]
[1765114706069,0.08159,89021.0,89020.0,0.0948624]
[1765114706562,0.07959,89021.0,89020.0,0.0948624]
[1765114706768,0.08159,89021.0,89020.0,0.0948624]
[1765114707464,0.08159,89021.0,89020.0,0.001]
[1765114707856,0.44239,89021.0,89020.0,0.001]
[1765114708367,0.07959,89002.0,89001.0,0.1050482]
[1765114708765,0.07959,89002.0,89001.0,0.0938649]
[1765114709661,0.07959,89002.0,89001.0,0.0968649]
[1765114709863,0.08059,89002.0,89001.0,0.1038649]
[1765114710565,0.001,89002.0,89001.0,0.1038649]
[1765114710765,0.001,89002.0,89001.0,0.1028649]
[1765114710967,0.10391849,89010.0,89009.0,0.0938639]
[1765114711667,0.10391849,89010.0,89009.0,0.03975]
[1765114711868,0.10391849,89010.0,89009.0,0.08263]
[1765114713058,0.10391849,89010.0,89009.0,0.08363]
[1765114713263,0.10491849,89010.0,89009.0,0.08363]
[1765114713667,0.10491849,89010.0,89009.0,0.08463]
[1765114714458,0.10491849,89010.0,89009.0,0.04175]
[1765114714658,0.10491849,89010.0,89009.0,0.08463]
[1765114719177,0.08075849,89010.0,89009.0,0.08463]
[1765114719563,0.10491849,89010.0,89009.0,0.08463]
[1765114723667,0.10491849,89010.0,89009.0,0.002]
[1765114724672,0.09256,88992.0,88991.0,0.43675]
[1765114724877,0.09256,88992.0,88991.0,0.3608]
[1765114725273,0.09256,88992.0,88991.0,0.39789]
[1765114725886,0.09256,88992.0,88991.0,0.40089]
[1765114726069,0.09256,88992.0,88991.0,0.44775]
[1765114726268,0.09356,88992.0,88991.0,0.44775]
[1765114727977,0.09356,88992.0,88991.0,0.3708]
[1765114728175,0.09256,88992.0,88991.0,0.3628]
[1765114728380,0.09356,88992.0,88991.0,0.3658]
[1765114728770,0.09356,88992.0,88991.0,0.3638]
[1765114728976,0.09356,88992.0,88991.0,0.3648]
[1765114732873,0.09356,88992.0,88991.0,0.004]
[1765114733080,0.45436,88992.0,88991.0,0.004]
[1765114733379,0.45436,88992.0,88972.0,0.0112385]
[1765114733380,0.07859,88973.0,88972.0,0.07595]
[1765114734183,0.07859,88973.0,88972.0,0.0871885]
[1765114734979,0.08059,88973.0,88972.0,0.1011885]
[1765114736369,0.08059,88973.0,88972.0,0.4619885]
[1765114738977,0.08059,88973.0,88972.0,0.1011885]
[1765114739582,0.08059,88973.0,88972.0,0.014]
[1765114739888,0.5066216,88973.0,88972.0,1.82e-06]
[1765114740281,0.5066216,88973.0,88952.0,0.0689121]
[1765114740282,0.06827,88953.0,88952.0,0.0689121]
[1765114740478,0.06827,88953.0,88952.0,0.0001221]
[1765114741878,0.06827,88953.0,88934.0,0.5234]
[1765114741879,0.08841,88928.0,88927.0,0.0800341]
[1765114742079,0.06827,88928.0,88927.0,0.0800341]
[1765114742690,0.08849636,88928.0,88927.0,0.06879]
[1765114742899,0.08849636,88928.0,88912.0,0.0800361]
[1765114742900,0.02014,88921.0,88912.0,0.0800361]
[1765114743082,0.06827,88913.0,88912.0,0.06879]
[1765114745084,0.44929636,88928.0,88927.0,0.06879]
[1765114746192,0.06827,88927.0,88926.0,0.0800343]
[1765114746593,0.06827,88922.0,88921.0,0.03438]
[1765114746986,0.06827,88922.0,88921.0,0.06879]
[1765114747589,0.06827,88922.0,88920.0,0.0112451]
[1765114747590,0.00708636,88928.0,88927.0,0.0800342]
[1765114747793,8.636e-05,88928.0,88927.0,0.0810342]
[1765114748493,8.636e-05,88928.0,88927.0,0.4418342]
[1765114750196,0.00708636,88928.0,88927.0,0.4448342]
[1765114752183,0.00016859,88936.0,88935.0,0.0998432]
[1765114752384,0.3608,88962.0,88952.0,0.011241]
[1765114752591,0.08727,88960.0,88959.0,0.06941]
[1765114752792,0.06713,88960.0,88959.0,0.06941]
[1765114752992,0.02065,88977.0,88976.0,0.06941]
[1765114752993,0.44858,88977.0,88976.0,0.06941]
[1765114753183,0.06713,88967.0,88966.0,0.0112392]
[1765114753491,0.06713,88962.0,88961.0,0.0806498]
[1765114754184,0.3608,88969.0,88968.0,0.100209]
[1765114754578,0.3608,88969.0,88968.0,0.080649]
[1765114754579,0.39367,88969.0,88968.0,0.080649]
[1765114755193,0.06713,88964.0,88963.0,0.0806496]
[1765114755783,0.06655576,88964.0,88963.0,0.0806496]
[1765114756278,0.06655576,88964.0,88961.0,0.004]
[1765114756279,0.06713,88962.0,88961.0,0.004]
[1765114756483,0.06713,88962.0,88961.0,0.0361]
[1765114757180,0.06713,88962.0,88961.0,0.0351]
[1765114757385,0.008,88964.0,88963.0,0.06941]
[1765114757879,0.3618,88969.0,88960.0,0.01977]
[1765114757880,0.39467,88969.0,88968.0,0.080649]
[1765114758080,0.42793,88969.0,88968.0,0.080649]
[1765114759493,0.42793,88969.0,88968.0,0.06941]
[1765114760292,0.43693,88969.0,88968.0,0.07141]
[1765114760887,0.43793,88969.0,88968.0,0.07141]
[1765114762289,0.06713,88959.0,88958.0,0.00016858]
[1765114762490,0.06713,88943.0,88942.0,0.0806523]
[1765114763894,0.06713,88943.0,88942.0,0.06941]
[1765114764096,0.07413,88943.0,88942.0,0.07141]
[1765114764596,0.07413,88943.0,88942.0,0.002]
[1765114764792,0.07513,88943.0,88942.0,0.002]
[1765114765609,0.07413,88943.0,88942.0,0.002]
[1765114765798,0.06713,88939.0,88938.0,0.3608]
[1765114766100,0.06713,88939.0,88938.0,0.43021]
[1765114767294,0.07013,88939.0,88938.0,0.43221]
[1765114767799,0.07113,88939.0,88938.0,0.43221]
[1765114769199,0.03687,88939.0,88938.0,0.43221]
[1765114769398,0.004,88939.0,88938.0,0.43221]
[1765114770502,0.03687,88939.0,88938.0,0.43221]
[1765114770702,0.004,88939.0,88938.0,0.43221]
[1765114771194,0.03687,88939.0,88938.0,0.43221]
[1765114772107,0.004,88939.0,88938.0,0.43221]
[1765114779508,0.07113,88939.0,88938.0,0.43221]
[1765114780405,0.03687,88939.0,88938.0,0.43221]
[1765114780611,0.07113,88939.0,88938.0,0.43221]
[1765114781199,0.07113,88939.0,88938.0,0.07141]
[1765114781411,0.0711983,88939.0,88938.0,0.07141]
[1765114782310,0.0711983,88939.0,88938.0,0.0826528]
[1765114782510,0.0040683,88939.0,88938.0,0.0826528]
[1765114782708,0.0346783,88939.0,88938.0,0.0826528]
[1765114782905,0.0678983,88939.0,88938.0,0.0826528]
[1765114786015,0.0040683,88939.0,88938.0,0.0826528]
[1765114791412,0.00016858,88951.0,88950.0,0.0768713]
[1765114792714,0.00116858,88951.0,88950.0,0.0768713]
[1765114794414,0.00116858,88951.0,88950.0,0.0798713]
[1765114794624,0.00316858,88951.0,88950.0,0.0798713]
[1765114795317,0.00216858,88951.0,88950.0,0.0798713]
[1765114795523,0.00316858,88951.0,88950.0,0.0888713]
[1765114796320,0.08077189,88984.0,88978.0,0.06023]
[1765114796321,0.06027,88979.0,88978.0,0.06023]
[1765114796521,0.08653115,88979.0,88978.0,0.06023]
[1765114797119,0.06027,88979.0,88978.0,0.03076]
[1765114797920,0.06227,88979.0,88978.0,0.03576]
[1765114798120,0.06227,88979.0,88978.0,0.06523]
[1765114798329,0.06027,88979.0,88978.0,0.06023]
[1765114798517,0.06327,88979.0,88978.0,0.003]
[1765114800114,0.06327,88979.0,88970.0,0.07163728]
[1765114800115,0.06027,88971.0,88970.0,0.07163728]
[1765114800314,0.06027,88971.0,88970.0,0.06039858]
[1765114800721,0.06027,88971.0,88970.0,0.00016858]
[1765114801133,0.06027,88950.0,88949.0,0.3608]
[1765114802629,0.06027,88941.0,88940.0,0.39156]
[1765114802829,0.06027,88941.0,88940.0,0.42103]
[1765114803827,0.06327,88941.0,88940.0,0.44103]
[1765114804924,0.03384,88941.0,88940.0,0.44103]
[1765114805636,0.003,88941.0,88940.0,0.44103]
[1765114806725,0.05963189,88973.0,88940.0,0.44103]
[1765114806726,0.03100858,88958.0,88957.0,0.06023]
[1765114806922,0.06043858,88958.0,88957.0,0.06023]
[1765114807922,0.03100858,88958.0,88957.0,0.06023]
[1765114808120,0.03300858,88958.0,88957.0,0.06923]
[1765114808327,0.06243858,88958.0,88957.0,0.06923]
[1765114809931,0.06243858,88958.0,88957.0,0.009]
[1765114811339,0.06243858,88958.0,88957.0,0.06923]
[1765114816733,0.00216858,88958.0,88957.0,0.06923]
[1765114817341,0.06063858,88958.0,88957.0,0.06923]
[1765114821646,0.03024858,88958.0,88957.0,0.06923]
[1765114822238,0.00216858,88958.0,88957.0,0.06923]
[1765114823439,0.06063858,88958.0,88957.0,0.06923]
[1765114826035,0.00216858,88958.0,88957.0,0.06923]
[1765114826237,0.00216858,88958.0,88957.0,0.43003]
[1765114826840,0.03024858,88958.0,88957.0,0.43003]
[1765114827340,0.00216858,88958.0,88957.0,0.43003]
[1765114828547,0.05847,88976.0,88975.0,0.05977]
[1765114828745,0.05847,88976.0,88975.0,0.0710082]
[1765114829742,0.05847,88976.0,88975.0,0.0820082]
[1765114829947,0.06047,88976.0,88975.0,0.0820082]
[1765114830746,0.05847,88976.0,88975.0,0.0710082]
[1765114830943,0.06047,88976.0,88975.0,0.0800082]
[1765114831148,0.06147,88976.0,88975.0,0.0800082]
[1765114833858,0.05847,88976.0,88975.0,0.0710082]
[1765114834051,0.06147,88976.0,88975.0,0.0820082]
[1765114836163,0.06047,88976.0,88975.0,0.0830082]
[1765114837053,0.05847,88976.0,88975.0,0.0710082]
[1765114837260,0.06147,88976.0,88975.0,0.0830082]
[1765114837960,0.06047,88976.0,88975.0,0.0830082]
[1765114838152,0.06147,88976.0,88975.0,0.0830082]
[1765114838754,0.05947,88976.0,88975.0,0.0710082]
[1765114838955,0.06147,88976.0,88975.0,0.0830082]
[1765114839358,0.05847,88971.0,88970.0,0.4023188]
[1765114839758,0.05847,88971.0,88970.0,0.4318088]
[1765114840362,0.05847,88971.0,88970.0,0.4328088]
[1765114840562,0.05847,88971.0,88970.0,0.4458088]
[1765114840757,0.06047,88971.0,88970.0,0.4458088]
[1765114841062,0.06047,88971.0,88970.0,0.4448088]
[1765114842363,0.05847,88971.0,88970.0,0.4318088]
[1765114842659,0.06047,88971.0,88970.0,0.0840088]
[1765114842864,0.06047,88971.0,88970.0,0.09509041]
[1765114844965,0.002,88971.0,88970.0,0.09509041]
[1765114845367,0.0776,88980.0,88979.0,0.0684277]
[1765114845563,0.10369349,88980.0,88979.0,0.0684277]
[1765114846770,0.10569349,88980.0,88979.0,0.0794277]
[1765114846966,0.10669349,88980.0,88979.0,0.0794277]
[1765114847672,0.10569349,88980.0,88979.0,0.0794277]
[1765114847873,0.10669349,88980.0,88979.0,0.0794277]
[1765114848263,0.08570349,88980.0,88979.0,0.0684277]
[1765114848464,0.08770349,88980.0,88979.0,0.0774277]
[1765114849268,0.08770349,88980.0,88979.0,0.0684277]
[1765114849472,0.08770349,88980.0,88979.0,0.0784277]
[1765114850064,0.02709349,88980.0,88979.0,0.0684277]
[1765114850269,0.003,88980.0,88979.0,0.0794277]